bitfinex/quotes_ETHUSD_20220218
["timestamp","ask_amount","ask_price","bid_price","bid_amount"]
[1645147306148,1.73317,2886.2,2886.0,0.00212091]
[1645147306352,0.86664,2886.1,2886.0,1.47860102]
[1645147307150,0.86664,2886.1,2886.0,0.00212091]
[1645147307448,0.86664,2886.1,2885.9,1.47935042]
[1645147307650,0.86669,2886.0,2885.9,1.47935042]
[1645147308248,0.86669,2886.0,2885.9,1.47652601]
[1645147311094,1.73341,2886.0,2885.9,1.4765815]
[1645147313537,0.86669,2886.0,2885.9,1.4765815]
[1645147313737,1.92938027,2886.0,2885.9,1.4765815]
[1645147314945,1.92938027,2886.0,2885.8,0.00362983]
[1645147314946,6.5,2885.9,2885.8,0.00362983]
[1645147315144,27.93079484,2885.9,2884.5,3.5]
[1645147315442,1.73398,2885.4,2884.3,0.64491275]
[1645147315639,1.73398,2885.4,2884.2,3.5]
[1645147315640,1.73397,2885.3,2884.2,4.14491275]
[1645147315892,0.1733,2885.5,2884.3,0.64491275]
[1645147316095,1.4515,2885.6,2884.3,0.64491275]
[1645147316298,0.86682,2885.2,2884.9,1.10074162]
[1645147317498,0.86682,2885.2,2884.2,0.64491275]
[1645147317499,0.86698,2885.1,2884.2,0.64491275]
[1645147317700,2.60112,2884.9,2884.2,0.64491275]
[1645147317897,1.73408,2884.9,2884.2,0.64491275]
[1645147318099,1.73408,2884.9,2884.5,0.00130475]
[1645147318497,0.15860486,2884.9,2884.5,0.00130475]
[1645147318697,0.15860486,2884.9,2884.7,0.896666]
[1645147318900,1.73405,2884.8,2884.7,0.896666]
[1645147319100,1.73404,2884.9,2884.7,0.896666]
[1645147319297,1.73404,2884.9,2884.7,0.89974042]
[1645147320348,0.86698,2884.7,2884.1,0.78349375]
[1645147320547,1.73395,2884.7,2884.1,0.78349375]
[1645147320747,0.86697,2884.7,2884.1,0.78349375]
[1645147320945,0.86697,2884.7,2884.1,0.138581]
[1645147321548,0.86697,2884.7,2884.2,1.11621535]
[1645147321852,0.86697,2884.7,2884.3,0.0030746]
[1645147322249,0.86698,2884.6,2884.3,0.0030746]
[1645147322450,1.73398,2884.6,2884.3,0.0030746]
[1645147322650,1.73398,2884.6,2884.2,1.11621535]
[1645147322651,1.73404,2884.9,2884.2,1.11621535]
[1645147322853,1.34521432,2885.0,2884.2,1.11621535]
[1645147323051,0.3,2885.0,2884.3,0.00307457]
[1645147323250,0.86694,2884.8,2884.3,0.00307457]
[1645147323890,0.86694,2884.8,2884.2,1.11621535]
[1645147323891,0.86695,2884.7,2884.2,1.11621535]
[1645147324092,0.86695,2884.7,2884.4,0.00307453]
[1645147325092,0.86695,2884.7,2884.2,1.11621535]
[1645147325291,0.86696,2884.6,2884.4,0.00307453]
[1645147326106,0.86696,2884.6,2883.4,7e-05]
[1645147326107,10.48530216,2884.5,2883.4,7e-05]
[1645147326302,10.48530216,2884.5,2882.5,4.75780595]
[1645147326303,5.01234406,2883.8,2882.6,0.5]
[1645147326506,0.1734,2883.7,2882.6,0.5]
[1645147326702,0.4734,2883.7,2882.6,0.5]
[1645147326901,0.86752,2883.5,2882.0,0.1734]
[1645147327164,0.86752,2883.5,2881.8,0.1734]
[1645147327165,1.73538,2882.9,2881.8,0.1734]
[1645147327348,0.86769,2882.6,2881.8,0.1734]
[1645147327745,0.86769,2882.6,2881.5,8.15988939]
[1645147327746,0.86769,2882.6,2881.6,0.1734]
[1645147327946,0.86764,2882.5,2881.6,0.1734]
[1645147328349,0.86764,2882.5,2881.7,0.91610469]
[1645147328549,0.86764,2882.5,2882.4,0.90447234]
[1645147328749,0.86764,2882.5,2881.6,0.1734]
[1645147328750,0.8677,2882.2,2881.6,0.1734]
[1645147328948,1.73559,2882.2,2881.6,0.1734]
[1645147329148,0.86789,2882.2,2881.5,7.3]
[1645147329348,0.3,2882.1,2880.9,10.6264]
[1645147329550,1.73578,2882.3,2880.9,7.3]
[1645147329854,3.6982,2882.5,2882.1,1.09429238]
[1645147330253,3.6982,2882.5,2882.2,0.00361722]
[1645147330453,3.8716,2882.5,2882.2,0.00361722]
[1645147330895,2.60319,2882.4,2882.2,0.00361722]
[1645147331102,3.47091,2882.4,2882.2,0.00361722]
[1645147331303,0.3,2882.3,2882.2,0.00361722]
[1645147331501,0.3,2882.3,2882.2,0.00669274]
[1645147331703,2.3987,2882.3,2882.2,0.00307552]
[1645147332302,1.7357,2882.0,2881.1,0.00361722]
[1645147332507,0.86785,2882.0,2881.1,0.00361722]
[1645147332704,2.0987,2882.3,2881.2,1.08330361]
[1645147332903,2.0987,2882.3,2882.2,0.96740009]
[1645147333103,1.7892,2882.4,2882.2,0.00361722]
[1645147333303,1.7892,2882.4,2881.2,0.04397529]
[1645147333503,0.86772,2882.3,2881.2,0.04397529]
[1645147333704,0.86778,2882.0,2881.2,0.04397529]
[1645147334746,2.90341,2882.0,2881.2,0.04397529]
[1645147334942,2.90341,2882.0,2881.5,0.00307586]
[1645147334943,0.86798,2881.8,2881.5,0.00307586]
[1645147335746,1.73596,2881.8,2881.5,0.00307586]
[1645147335945,1.73596,2881.8,2881.4,0.00361722]
[1645147336146,1.73596,2881.8,2881.5,0.00307584]
[1645147337147,1.73596,2881.8,2881.4,0.00361722]
[1645147337351,0.86799,2881.7,2881.5,0.00307584]
[1645147338390,0.86799,2881.7,2881.4,0.00361722]
[1645147338590,0.86799,2881.7,2881.5,0.00307586]
[1645147339599,0.86799,2881.7,2881.4,0.00361722]
[1645147339792,0.86799,2881.7,2881.5,0.00307586]
[1645147340198,5.23601,2881.6,2881.5,0.00307586]
[1645147340399,5.53601,2881.6,2881.5,0.00307586]
[1645147340801,5.53601,2881.6,2880.5,0.00361722]
[1645147340802,20.28,2881.4,2880.5,0.00361722]
[1645147341001,1.76597621,2881.2,2880.6,1.07774243]
[1645147341200,2.23937621,2881.2,2880.6,1.07774243]
[1645147341400,2.90501,2881.1,2880.7,0.00361722]
[1645147342142,0.86834,2881.0,2879.8,0.00361722]
[1645147342344,0.86834,2881.0,2880.8,0.00307618]
[1645147343143,0.86824,2880.9,2880.5,0.00361722]
[1645147343443,1.46836,2880.9,2880.8,0.00307618]
[1645147343643,3.61996,2880.9,2880.8,0.00307618]
[1645147343845,3.61996,2880.9,2880.1,0.01230756]
[1645147343846,6.5,2880.8,2880.1,0.01230756]
[1645147344147,5.73609,2880.7,2880.1,0.01230756]
[1645147344351,5.73609,2880.7,2879.8,0.00361722]
[1645147344352,2.21051,2880.6,2879.8,0.00361722]
[1645147344555,2.70951,2880.6,2879.8,0.00361722]
[1645147344749,2.70951,2880.6,2879.4,0.00361722]
[1645147345049,0.85632797,2880.1,2879.5,0.86548013]
[1645147345351,0.86843,2880.0,2879.6,0.00361722]
[1645147345751,0.86843,2880.0,2879.7,0.00130084]
[1645147346401,3.5,2879.9,2879.7,0.00130084]
[1645147346704,3.5,2879.9,2879.4,0.00361722]
[1645147346705,1.15027495,2879.5,2879.4,0.00361722]
[1645147346898,1.15027495,2879.5,2879.2,0.00361722]
[1645147347096,1.45027495,2879.5,2879.3,0.0123131]
[1645147347496,0.3,2879.5,2879.3,0.0123131]
[1645147347907,0.86856,2879.6,2879.2,0.00361722]
[1645147348101,1.16856,2879.6,2879.2,0.00361722]
[1645147348298,1.16856,2879.6,2879.3,0.00307802]
[1645147348700,0.90272198,2879.5,2879.3,0.00307802]
[1645147349199,0.90272198,2879.5,2879.2,0.00361722]
[1645147349404,0.1736,2879.4,2879.2,0.00361722]
[1645147349665,0.1736,2879.4,2877.9,7.3]
[1645147349666,5.86873,2879.3,2877.9,7.3]
[1645147349962,1.16873,2879.3,2878.0,0.1736]
[1645147350367,2.03742,2879.3,2878.0,0.1736]
[1645147350566,1.73751,2879.2,2879.0,1.00298349]
[1645147351569,2.33751,2879.2,2879.0,1.0]
[1645147351772,2.51111,2879.2,2879.0,1.00298351]
[1645147352768,2.51111,2879.2,2879.0,1.0]
[1645147353169,0.86875,2879.1,2879.0,1.0]
[1645147353601,0.86869,2879.3,2879.0,1.0]
[1645147353800,2.64005198,2879.5,2879.0,1.0]
[1645147353801,0.90272198,2879.5,2879.0,1.0]
[1645147354200,0.90272198,2879.5,2879.0,1.00307493]
[1645147354201,1.77131198,2879.5,2879.0,1.00307493]
[1645147354799,2.07131198,2879.5,2879.0,1.00307493]
[1645147355001,2.60613,2879.4,2879.0,1.00307493]
[1645147355203,2.60613,2879.4,2879.0,1.0]
[1645147355401,0.3,2879.3,2879.1,0.00307488]
[1645147355600,1.16872,2879.3,2879.1,0.00307488]
[1645147356007,2.03743,2879.3,2879.1,0.00307488]
[1645147356213,2.03743,2879.3,2878.7,0.01230138]
[1645147356214,7.54238,2879.2,2878.7,1.38e-06]
[1645147356410,7.54238,2879.2,2877.1,0.86887]
[1645147356411,5.0,2878.9,2877.1,7.3]
[1645147356608,5.0,2878.9,2876.8,4.504]
[1645147356609,27.8814,2878.8,2876.8,4.504]
[1645147356808,7.9014,2878.8,2878.6,0.01230147]
[1645147357008,0.3,2878.7,2878.6,0.01230147]
[1645147357253,2.05057053,2878.7,2878.6,0.01230147]
[1645147357451,2.05057053,2878.7,2876.8,3.2755]
[1645147357653,0.86903,2878.2,2876.8,3.2755]
[1645147357852,0.86903,2878.2,2876.6,1.56721617]
[1645147357853,6.86042,2878.2,2876.6,0.69822617]
[1645147358153,0.3,2878.1,2876.6,0.69822617]
[1645147358352,0.88816989,2877.5,2876.8,1.015255]
[1645147358562,0.3,2878.1,2877.5,1.68467382]
[1645147358756,0.86913,2877.8,2877.5,1.68467382]
[1645147358956,2.0383,2878.1,2877.5,1.68467382]
[1645147359154,2.90738,2878.1,2877.5,1.68467382]
[1645147359757,1.03008793,2877.8,2877.5,1.68467382]
[1645147359956,1.89927793,2877.8,2877.5,1.68467382]
[1645147360161,3.5,2877.7,2877.5,1.68467382]
[1645147360365,0.1736,2877.6,2877.5,1.68467382]
[1645147360559,1.833,2877.6,2877.5,1.68467382]
[1645147360758,2.433,2877.6,2877.5,1.68467382]
[1645147361210,3.30243,2877.6,2877.5,1.68467382]
[1645147362206,6.80243,2877.6,2877.5,1.68467382]
[1645147362410,6.5262,2877.5,2876.7,0.1736]
[1645147362612,6.5262,2877.5,2876.5,0.0151612]
[1645147362613,0.86945,2877.0,2876.5,0.0151612]
[1645147362808,3.6928,2876.9,2876.5,0.0151612]
[1645147363315,3.6928,2876.9,2874.6,7.3]
[1645147363316,20.28,2876.5,2874.6,7.3]
[1645147363514,2.1975,2876.4,2874.6,7.3]
[1645147363713,1.16998,2875.9,2874.6,7.3]
[1645147363909,3.7042,2875.8,2874.6,7.4738]
[1645147364309,0.1738,2876.3,2875.3,0.97278371]
[1645147364512,3.5,2876.6,2875.3,1.27278371]
[1645147364513,3.7042,2876.6,2875.3,1.27278371]
[1645147364745,4.0042,2876.6,2875.4,0.08176106]
[1645147364944,4.0042,2876.6,2875.4,0.08522461]
[1645147365145,2.12422987,2876.6,2875.7,0.00296287]
[1645147365343,6.6461,2877.0,2876.3,1.14449552]
[1645147365344,7.75703535,2877.0,2876.3,1.14449552]
[1645147365545,1.98033535,2877.0,2876.4,0.00346355]
[1645147365947,0.8694,2877.0,2876.4,0.00346355]
[1645147366151,0.499,2877.5,2876.4,0.00346355]
[1645147366152,2.1393,2877.6,2876.6,0.00296247]
[1645147366354,0.1738,2877.7,2876.6,0.00296247]
[1645147366551,1.865,2878.0,2876.7,0.499]
[1645147366748,3.6736,2878.3,2876.7,0.499]
[1645147366749,3.6736,2878.3,2876.8,0.00346355]
[1645147366950,1.06460399,2878.1,2877.5,1.17217644]
[1645147367250,8.5,2878.0,2877.6,0.00346355]
[1645147367451,0.6726,2877.9,2877.4,0.00296209]
[1645147367649,1.8294,2877.9,2877.4,0.00296209]
[1645147368048,3.4294,2877.9,2877.4,0.00296209]
[1645147368250,1.1076592,2877.7,2877.4,0.00296209]
[1645147368495,1.04284,2877.6,2877.1,0.00346355]
[1645147368794,1.04284,2877.6,2877.5,0.00275872]
[1645147368998,3.22864,2877.6,2877.5,0.00275872]
[1645147369295,3.22864,2877.6,2877.5,5.872e-05]
[1645147369497,3.22864,2877.6,2876.2,0.00346355]
[1645147369498,6.5,2877.5,2876.2,0.00346355]
[1645147369696,0.86963,2877.1,2876.2,0.00346355]
[1645147369896,1.11551475,2876.7,2876.2,0.00346355]
[1645147370098,1.41551475,2876.7,2876.2,0.00346355]
[1645147370301,0.1738,2876.6,2876.2,0.00346355]
[1645147370496,0.1738,2876.6,2875.3,0.00346355]
[1645147370497,3.6143,2876.6,2875.3,0.00346355]
[1645147370700,3.6143,2876.6,2874.7,1.48463898]
[1645147370701,6.22378,2876.6,2874.7,1.48463898]
[1645147370898,0.86981,2876.0,2874.8,1.48463898]
[1645147371098,0.86981,2876.0,2874.5,1.70870524]
[1645147371099,1.46981,2876.0,2874.9,1.48117543]
[1645147371299,1.16981,2876.0,2875.5,1.15607124]
[1645147371504,2.33958,2876.0,2875.5,1.15607124]
[1645147371699,2.33958,2876.0,2875.6,0.00346355]
[1645147371700,2.03958,2876.0,2875.6,0.00346355]
[1645147371901,2.98768,2876.4,2875.6,0.00346355]
[1645147372154,2.2443,2876.4,2875.6,0.0064801]
[1645147372858,0.1738,2876.8,2876.0,1.09778614]
[1645147373055,0.3168,2877.0,2876.0,1.09778614]
[1645147373255,0.3168,2877.0,2876.1,0.00346355]
[1645147373256,3.2023,2876.9,2876.1,0.00346355]
[1645147373854,3.57323491,2876.8,2876.1,0.00346355]
[1645147374062,4.44272491,2876.8,2876.1,0.00346355]
[1645147374258,1.16948,2876.7,2876.1,0.00346355]
[1645147374658,1.16948,2876.7,2876.3,0.00301626]
[1645147374855,2.03906,2876.7,2876.3,0.00301626]
[1645147375254,0.86958,2876.6,2876.3,0.00301626]
[1645147375454,0.86972,2876.5,2876.3,0.00301626]
[1645147375656,0.86972,2876.5,2876.1,0.00346355]
[1645147375657,1.16972,2876.5,2876.1,0.00346355]
[1645147375897,1.16972,2876.5,2874.7,9.29745836]
[1645147375898,0.1738,2876.4,2875.9,0.01148713]
[1645147376101,4.54343,2876.4,2875.9,0.01148713]
[1645147376301,1.0,2876.3,2875.9,0.01148713]
[1645147376503,0.86972,2876.1,2875.9,0.01148713]
[1645147376706,3.15567,2876.2,2876.1,0.73652203]
[1645147376900,1.04357,2876.2,2876.1,0.73652203]
[1645147377200,1.04357,2876.2,2876.0,0.0028715]
[1645147377201,5.0,2876.1,2876.0,0.0028715]
[1645147377600,5.86972,2876.1,2876.0,0.0028715]
[1645147378100,5.86972,2876.1,2875.5,1.16748077]
[1645147378300,0.86972,2876.1,2875.9,0.00287152]
[1645147378502,0.4738,2876.5,2875.9,0.00287152]
[1645147378703,1.1947,2876.6,2875.9,0.00287152]
[1645147378907,1.3685,2876.6,2875.9,0.00287152]
[1645147379309,1.3685,2876.6,2875.6,0.00346355]
[1645147379505,0.86975,2876.2,2876.1,0.00288122]
[1645147379745,0.86977,2876.2,2876.1,0.00288122]
[1645147380351,0.86977,2876.2,2875.6,0.00346355]
[1645147380748,1.16977,2876.2,2876.0,0.00288126]
[1645147381452,0.1738,2876.5,2876.0,0.00288126]
[1645147381653,1.1947,2876.6,2875.6,0.00346355]
[1645147381855,1.1947,2876.6,2876.0,0.00288127]
[1645147382851,1.1947,2876.6,2875.8,0.00346355]
[1645147383052,1.1947,2876.6,2876.2,0.00288054]
[1645147383252,1.8937,2876.8,2876.2,0.00288054]
[1645147383497,0.1738,2877.2,2876.2,0.00288054]
[1645147383701,0.86941,2877.0,2876.2,0.00288054]
[1645147383899,0.86941,2877.0,2875.8,0.00346355]
[1645147384100,0.94117387,2876.6,2876.0,1.12869837]
[1645147384299,0.94117387,2876.6,2876.1,0.01498684]
[1645147384698,0.1738,2876.9,2876.1,0.01498684]
[1645147385298,0.1738,2876.9,2876.1,0.00346355]
[1645147385497,0.1738,2876.9,2876.4,0.00288046]
[1645147385700,1.72687589,2876.7,2876.4,0.00288046]
[1645147385899,0.14678156,2876.7,2876.4,0.00288046]
[1645147386302,0.14678156,2876.7,2875.7,0.00346355]
[1645147386701,0.14678156,2876.7,2876.4,0.00288264]
[1645147386903,0.1738,2876.9,2876.4,0.00288264]
[1645147387544,0.1738,2876.9,2876.0,0.01153227]
[1645147387545,0.1738,2876.9,2875.7,0.00346355]
[1645147387745,0.86948,2876.7,2876.5,0.0028826]
[1645147388748,0.86948,2876.7,2875.7,0.00346355]
[1645147388948,0.86948,2876.7,2875.7,1.48489174]
[1645147389149,0.86948,2876.7,2876.5,0.00288262]
[1645147389551,3.5,2876.6,2876.5,0.00288262]
[1645147389755,4.1728,2876.6,2876.5,0.00288262]
[1645147389950,5.1728,2876.6,2875.7,15.99308773]
[1645147390151,0.86983,2876.4,2875.8,0.00346355]
[1645147390350,4.1728,2876.3,2876.0,0.01152305]
[1645147390551,0.97447993,2876.1,2876.0,0.01152305]
[1645147391201,0.97447993,2876.1,2875.8,0.00346355]
[1645147391404,0.97447993,2876.1,2875.9,0.00288052]
[1645147392201,1.84430993,2876.1,2875.9,0.00288052]
[1645147392405,0.86983,2876.0,2875.8,0.00346355]
[1645147392602,0.86983,2876.0,2875.9,0.00288054]
[1645147392603,1.73966,2876.0,2875.9,0.00288054]
[1645147393600,1.73966,2876.0,2875.8,0.00346355]
[1645147393804,1.73966,2876.0,2875.8,0.00634427]
[1645147394202,2.60948,2876.0,2875.8,0.00634427]
[1645147394872,0.86963,2876.2,2875.8,0.00346355]
[1645147395075,1.499,2876.6,2875.4,1.4378973]
[1645147395076,0.1738,2876.6,2875.4,1.4378973]
[1645147395270,5.1546,2876.7,2875.8,0.86947]
[1645147395470,1.8917,2876.7,2875.8,0.86947]
[1645147395667,1.8917,2876.7,2875.9,0.86938]
[1645147395868,1.8917,2876.7,2875.4,0.6728]
[1645147396073,1.8917,2876.7,2875.4,0.499]
[1645147396074,2.9351,2876.7,2875.4,0.499]
[1645147396472,0.86964,2876.3,2875.2,0.3]
[1645147396672,0.86964,2876.3,2875.2,0.65327764]
[1645147396874,0.86964,2876.3,2875.1,4.43161764]
[1645147397377,0.86964,2876.3,2876.1,0.87190296]
[1645147397579,2.0655,2876.7,2876.1,0.87190296]
[1645147397774,1.8917,2876.7,2876.1,0.87190296]
[1645147397975,1.8917,2876.7,2876.1,1.53500296]
[1645147398603,2.76116,2876.7,2876.1,1.53500296]
[1645147399401,2.76116,2876.7,2876.6,1.19292296]
[1645147399901,0.1738,2877.1,2876.6,1.19292296]
[1645147400302,0.1738,2877.2,2876.6,1.19292296]
[1645147400502,0.1736,2877.3,2876.6,1.19292296]
[1645147400702,1.73888,2877.1,2876.6,1.19292296]
[1645147400902,0.86941,2876.9,2876.6,1.19292296]
[1645147403150,0.8695,2876.7,2876.6,1.19292296]
[1645147403749,0.8695,2876.7,2875.9,0.65327764]
[1645147404155,1.73908,2876.7,2875.9,0.65327764]
[1645147404352,0.86957,2876.5,2875.9,0.65327764]
[1645147404651,0.86957,2876.5,2875.8,0.65327764]
[1645147404851,0.86957,2876.5,2876.3,1.07859489]
[1645147405899,1.02857452,2876.6,2876.3,1.07859489]
[1645147406099,1.3407,2877.1,2876.3,1.07859489]
[1645147406499,0.86945,2877.0,2876.3,1.07859489]
[1645147408404,0.86934,2877.1,2876.3,1.73187253]
[1645147408705,4.0624,2877.6,2876.6,0.65327764]
[1645147408903,2.9201,2877.6,2876.7,0.65327764]
[1645147409504,2.9201,2877.6,2877.4,1.02900079]
[1645147409758,1.8131,2877.7,2877.4,1.02900079]
[1645147409958,0.86919,2877.6,2877.4,1.02900079]
[1645147410759,0.86919,2877.6,2876.6,0.65327764]
[1645147410963,0.86919,2877.6,2876.3,2.59824939]
[1645147410964,0.1736,2877.5,2876.7,0.00344491]
[1645147411266,0.86934,2877.2,2876.5,0.00344491]
[1645147411964,0.86934,2877.2,2875.9,1.56535804]
[1645147411965,0.1738,2877.1,2876.1,0.00344491]
[1645147412164,0.1738,2877.1,2876.6,1.18854212]
[1645147412766,0.1738,2877.1,2876.7,0.00344491]
[1645147412968,1.2254,2877.3,2876.7,0.00344491]
[1645147413797,2.09466,2877.3,2876.7,0.00344491]
[1645147415199,2.09466,2877.3,2876.7,1.48462371]
[1645147415402,2.09466,2877.3,2876.8,0.00344491]
[1645147415602,0.86926,2877.3,2876.8,0.00344491]
[1645147419069,0.86926,2877.3,2876.7,1.4811788]
[1645147419472,0.1736,2877.6,2876.7,1.4811788]
[1645147419671,2.9821,2877.7,2876.7,1.4811788]
[1645147420272,1.73856,2877.5,2877.2,0.93486983]
[1645147420901,0.86922,2877.4,2877.2,0.93486983]
[1645147421104,0.86922,2877.4,2876.6,0.00344491]
[1645147421701,0.86922,2877.4,2876.3,0.65327764]
[1645147421901,0.86922,2877.4,2876.4,0.00344491]
[1645147422304,0.86922,2877.4,2876.5,0.86929]
[1645147422602,0.86922,2877.4,2877.1,1.19443879]
[1645147422806,0.86922,2877.4,2877.2,1.48113108]
[1645147427650,0.8692,2877.5,2877.2,1.48113108]
[1645147428498,2.60781,2877.5,2877.2,1.48113108]
[1645147428703,0.86937,2877.4,2877.2,1.48113108]
[1645147430901,2.60806,2877.4,2877.2,1.48113108]
[1645147431105,0.86944,2877.0,2876.3,0.65327764]
[1645147431309,0.86944,2877.0,2876.3,1.48120083]
[1645147431504,0.86944,2877.0,2876.4,1.48120083]
[1645147431701,0.86944,2877.0,2876.5,1.48120083]
[1645147431902,1.73887,2877.1,2877.0,0.71047966]
[1645147432150,1.73887,2877.1,2877.0,2.19168049]
[1645147432550,0.0010816,2877.2,2877.0,2.19168049]
[1645147432750,0.0010816,2877.2,2877.1,1.48120083]
[1645147436414,0.0010816,2877.2,2877.1,3.23108189]
[1645147436618,0.00288209,2877.9,2877.2,6.5]
[1645147436811,2.9273,2878.1,2877.3,1.48120083]
[1645147437014,3.1652,2878.7,2877.3,22.06120083]
[1645147437314,0.00288209,2877.9,2877.7,0.86885]
[1645147437512,0.00288209,2877.9,2877.8,1.48120083]
[1645147438012,1.7817,2878.7,2877.8,2.40720537]
[1645147438211,1.7817,2878.7,2878.6,1.19175543]
[1645147438616,0.86896,2878.9,2877.7,0.86893]
[1645147438815,0.86896,2878.9,2877.8,1.48065114]
[1645147439018,1.73792,2878.7,2877.8,1.48065114]
[1645147439218,0.86898,2878.7,2877.9,1.48065114]
[1645147439415,0.86898,2878.7,2878.0,1.48065114]
[1645147439647,2.03791,2878.8,2878.4,1.15153079]
[1645147439648,0.00288223,2878.5,2878.4,1.15153079]
[1645147440446,0.86898,2878.5,2878.4,1.15153079]
[1645147441056,0.00288217,2878.6,2878.4,1.15153079]
[1645147441654,2.3051,2879.0,2878.4,1.15153079]
[1645147442054,0.00288215,2878.6,2878.4,1.15153079]
[1645147442454,0.87181215,2878.6,2878.4,1.15153079]
[1645147442855,1.16893,2878.6,2878.4,1.15153079]
[1645147443254,1.17181215,2878.6,2878.4,1.15153079]
[1645147444101,1.16893,2878.6,2878.4,1.15153079]
[1645147444302,1.17181214,2878.6,2878.4,1.15153079]
[1645147445402,0.3,2878.6,2878.4,1.15153079]
[1645147445603,0.30288214,2878.6,2878.4,1.15153079]
[1645147446407,0.3,2878.6,2878.4,1.15153079]
[1645147446812,0.00288214,2878.6,2878.4,1.15153079]
[1645147447655,3.47531,2879.2,2878.4,1.15153079]
[1645147447656,2.2239,2879.3,2878.5,1.48026701]
[1645147448054,0.1737,2879.5,2878.5,1.48026701]
[1645147448055,0.00288716,2878.6,2878.5,1.48026701]
[1645147448253,0.00288716,2878.6,2878.5,3.21746701]
[1645147448559,0.00288716,2878.6,2878.5,9.71646701]
[1645147448752,1.9666,2879.7,2878.6,6.5]
[1645147448954,0.1736,2880.1,2878.7,1.97926701]
[1645147449154,0.1736,2880.1,2878.8,1.48026701]
[1645147449353,1.91072,2880.1,2880.0,1.03701282]
[1645147449552,1.91072,2880.1,2878.9,0.499]
[1645147449553,1.04216,2880.1,2879.0,1.216]
[1645147449955,1.04216,2880.1,2878.7,0.499]
[1645147449956,0.86859,2879.8,2878.7,0.499]
[1645147450154,1.04219,2879.8,2878.4,4.3846]
[1645147450355,1.1426,2879.7,2878.5,1.48019157]
[1645147450555,1.7426,2879.7,2878.5,1.48019157]
[1645147450753,0.86874,2879.6,2879.3,0.97204666]
[1645147451012,0.8687,2879.4,2879.3,0.97204666]
[1645147454014,0.8687,2879.4,2878.4,4.4415]
[1645147454318,1.73747,2879.4,2878.3,0.86873]
[1645147454516,1.73747,2879.4,2878.2,0.1736]
[1645147454517,0.86887,2879.1,2878.2,0.1736]
[1645147454753,1.16887,2879.1,2878.2,0.1736]
[1645147454955,1.16887,2879.1,2878.9,1.18494262]
[1645147454956,0.3,2879.1,2878.9,1.18494262]
[1645147455355,2.03773,2879.2,2878.9,1.18494262]
[1645147455754,0.86885,2879.0,2878.9,1.18494262]
[1645147456159,0.3,2879.0,2878.9,1.18494262]
[1645147456357,0.00288189,2879.1,2878.9,1.18494262]
[1645147457160,0.87167189,2879.1,2878.9,1.18494262]
[1645147457359,1.16879,2879.1,2878.9,1.18494262]
[1645147457566,1.17167187,2879.1,2878.9,1.18494262]
[1645147458604,1.16879,2879.1,2878.9,1.18494262]
[1645147458804,1.17167186,2879.1,2878.9,1.18494262]
[1645147459708,1.17167186,2879.1,2878.2,0.1736]
[1645147459709,1.16879,2879.1,2878.2,0.1736]
[1645147459910,0.00288186,2879.1,2878.2,6.4736]
[1645147460111,0.00288186,2879.1,2878.3,1.48020791]
[1645147460306,0.00288186,2879.1,2878.3,2.48020791]
[1645147460506,0.00288186,2879.1,2878.4,1.48020791]
[1645147460908,1.9651,2879.4,2878.4,1.78020791]
[1645147461109,0.00288196,2878.9,2878.8,0.8686]
[1645147461909,0.00288196,2878.9,2878.6,0.8686]
[1645147462150,1.9651,2879.4,2878.6,0.8686]
[1645147462351,0.00288192,2879.0,2878.6,0.8686]
[1645147463248,1.9651,2879.4,2878.6,1.73725]
[1645147463549,0.00288194,2878.9,2878.6,0.86865]
[1645147464448,2.83379,2879.4,2878.6,0.86865]
[1645147464847,0.00288196,2878.9,2878.6,0.86865]
[1645147465652,1.9651,2879.4,2878.6,1.73729]
[1645147465930,0.00288196,2878.9,2878.5,1.72130831]
[1645147466531,0.00288196,2878.9,2878.5,2.58999831]
[1645147466934,3.5,2879.3,2878.5,0.85260831]
[1645147467135,2.83388,2879.4,2878.3,1.86876]
[1645147467136,0.00288198,2878.8,2878.3,1.86876]
[1645147467336,0.00288198,2878.8,2878.4,0.84532248]
[1645147468136,7.6075,2879.4,2878.4,0.84532248]
[1645147468437,7.6075,2879.4,2878.3,1.0]
[1645147468438,6.73873,2879.4,2879.0,1.19150508]
[1645147469440,0.86875,2879.3,2879.0,1.19150508]
[1645147469659,0.87163179,2879.3,2879.0,1.19150508]
[1645147470458,5.86987,2879.4,2879.0,1.19150508]
[1645147470855,0.00288181,2879.3,2879.0,1.19150508]
[1645147471657,5.0012,2879.4,2879.0,1.19150508]
[1645147472058,0.87160181,2879.3,2879.0,1.19150508]
[1645147472459,0.87160181,2879.3,2879.0,1.19031762]
[1645147472859,0.00288181,2879.3,2879.0,1.19031762]
[1645147473067,0.86871,2879.3,2879.0,1.19031762]
[1645147473259,0.87159181,2879.3,2879.0,1.19031762]
[1645147473907,0.87159181,2879.3,2878.3,1.3]
[1645147474110,1.73748,2879.3,2878.4,1.48029689]
[1645147474308,0.86875,2879.2,2878.4,1.48029689]
[1645147475108,0.86875,2879.2,2879.0,0.98635822]
[1645147475912,0.86869,2879.3,2879.0,0.98635822]
[1645147476817,0.87148909,2879.3,2879.0,0.98635822]
[1645147477676,0.86869,2879.3,2879.0,0.98635822]
[1645147478075,0.8715747,2879.3,2879.0,0.98635822]
[1645147478381,0.8715747,2879.3,2878.1,0.1736]
[1645147478382,6.3393947,2879.3,2878.1,0.1736]
[1645147478576,1.3132,2879.2,2878.1,0.1736]
[1645147478777,1.3132,2879.2,2877.2,0.65327764]
[1645147478778,27.01805,2879.0,2877.2,0.65327764]
[1645147478980,1.28429867,2878.8,2877.3,1.4807329]
[1645147479176,1.1068258,2878.5,2877.8,0.86012659]
[1645147479379,0.86928,2878.3,2877.8,0.86012659]
[1645147479577,1.54185,2878.2,2877.8,0.86012659]
[1645147479979,1.84185,2878.2,2877.8,0.86012659]
[1645147480179,1.84185,2878.2,2877.0,0.71047966]
[1645147480383,1.84185,2878.2,2877.1,1.48377722]
[1645147480384,3.5,2878.1,2877.1,1.48377722]
[1645147480581,0.86944,2877.7,2877.1,1.48377722]
[1645147480782,0.1736,2877.6,2877.1,0.00288313]
[1645147481014,0.1736,2877.6,2877.1,1.48389839]
[1645147481208,0.1736,2877.6,2877.1,1.10781171]